Cogmind - Beta 16 @@@ ROGUE MODE // 2025.10.22 @ 12:04:43 Player: Falconhoof Result: Destroyed by S-10 Pest with Light Assault Rifle Performance ------------- Evolutions (0) 0 Regions Visited (2) 400 Robots Destroyed (16) 80 Value Destroyed (405) 405 Prototype IDs (0) 0 Alien Tech Used (0) 0 Bonus (0) 0 TOTAL SCORE: 885 Bonus ------- None Cogmind --------- Core Integrity 0/250 Matter 275/300 Energy 246/250 System Corruption 0% Temperature Cool (2) Movement Walking (190) Ox1 Location -10/Mines Parts ------- > --- POWER (1) -------- Ion Engine > --- PROPULSION (2) --- Aluminum Leg Aluminum Leg > --- UTILITY (2) ------ Large Storage Unit Weight Redist. System > --- WEAPON (2) ------- Flail Flail > --- INVENTORY (15) --- Ion Engine Light Ion Engine Heat Sink Heat Sink ECM Suite Peak State ------------ > --- POWER ------------ Ion Engine > --- PROPULSION ------- Aluminum Leg Aluminum Leg > --- UTILITY ---------- Large Storage Unit Weight Redist. System > --- WEAPON ----------- Flail Flail > --- INVENTORY -------- Ion Engine Light Ion Engine Heat Sink Heat Sink ECM Suite [Rating: 10] Favorites ----------- Power Ion Engine Engine Ion Engine Propulsion Aluminum Leg Leg Aluminum Leg Utility Large Storage Unit Device Weight Redist. System Storage Large Storage Unit Protection Light Armor Plating Weapon Small Laser Energy Gun Small Laser Ballistic Gun Light Assault Rifle Impact Weapon Flail Build | -11 -10 -10 ------- Run | Yrd Mat Min Slots Evolved . | . . . Power . | . . . Propulsion . | . . . Utility . | . . . Weapon . | . . . Parts Attached 20 | 4 15 1 Power 3 | . 3 . Engine 3 | . 3 . Core . | . . . Reactor . | . . . Propulsion 6 | 2 4 . Treads . | . . . Leg 6 | 2 4 . Wheel . | . . . Hover . | . . . Flight . | . . . Utility 5 | . 5 . Device 2 | . 2 . Storage 2 | . 2 . Processor . | . . . Hackware . | . . . Protection 1 | . 1 . Artifact . | . . . Weapon 6 | 2 3 1 Energy Gun 3 | 2 1 . Energy Cannon . | . . . Ballistic Gun 1 | . 1 . Ballistic Cannon . | . . . Launcher . | . . . Special Weapon . | . . . Impact Weapon 2 | . 1 1 Slashing Weapon . | . . . Piercing Weapon . | . . . Special Melee Weapon . | . . . Unidentified Prototypes . | . . . Parts Lost 6 | . 5 1 Power . | . . . Propulsion 3 | . 3 . Utility 1 | . 1 . Weapon 2 | . 1 1 Highest Loss Streak 2 | . 2 1 To Critical Strikes . | . . . Average Backups 4 | . 4 5 Power 1 | . 1 2 Propulsion . | . . . Utility 1 | . 1 3 Weapon . | . . . Tool/Special . | . . . Unused Backups 5 | . 2 3 Power 2 | . 1 1 Propulsion . | . . . Utility 3 | . 1 2 Weapon . | . . . Tool/Special . | . . . Average Slot Usage (%) 91 | . 89 100 Engine 11 | . 11 14 Leg 26 | . 25 28 Device 11 | . 10 14 Storage 11 | . 11 14 Energy Gun 15 | . 16 13 Ballistic Gun 3 | . 4 . Impact Weapon 8 | . 7 14 Peak Build Rating 10 | 4 9 10 Average Rating 7 | 2 7 9 On Entrance 4 | . 4 9 Avg Prop Armor Cover (%) . | . . . Naked Turns . | . . . Heaviest Build 29 | 3 29 29 Greatest Support 26 | 20 26 26 Greatest Overweight (x) 4 | . 4 1 Average Overweight (x) . | . . 1 Largest Inventory Capacity 15 | 5 15 15 Average Capacity 11 | 5 10 15 Most Carried 8 | 1 8 6 Average Carried 4 | . 4 5 Final Capacity 15 | 5 15 15 Final Carried 6 | 1 6 5 Class Distribution -------------------- 67% | Scavenger-Mutant 32% | Mutant Dominant Class ---------------- Scavenger-Mutant | -10/Materials Scavenger-Mutant | -10/Mines Resources | -11 -10 -10 ----------- Run | Yrd Mat Min Matter Collected 385 | 195 190 . Remotely . | . . . Salvage Created 470 | . 470 . Parts 30 | . 30 . Haulers Intercepted 1 | . 1 . Recyclers Shooed . | . . . Parts Field Recycled . | . . . Retrieved Matter . | . . . Parts Self-Destructed . | . . . Prevented . | . . . Parts Restored . | . . . Kills | -11 -10 -10 ------- Run | Yrd Mat Min Combat Hostiles Destroyed 15 | . 15 . Melee 1 | . 1 . Guns 13 | . 13 . Classes Destroyed 3 | . 3 . Hauler 1 | . 1 . Swarmer 5 | . 5 . Grunt 10 | . 10 . Best Kill Streak 5 | . 5 . Combat Bots Only 5 | . 5 . Max Kills in Single Turn 2 | . 2 . Gunslinging 1 | . 1 . Exploded . | . . . Melee 1 | . 1 . Uniques/NPCs Destroyed . | . . . Combat | -11 -10 -10 -------- Run | Yrd Mat Min Hostile Shots Fired 131 | . 101 30 Missed 37 | . 32 5 Hits 94 | . 69 25 Projectile 94 | . 69 25 Damage Taken 1203 | . 996 207 Core 252 | . 201 51 Absorbed by Shields . | . . . Core Remaining (%) 100 | 100 . . Volleys Fired 43 | . 39 4 Largest 2 | . 2 1 Hottest 80 | . 80 40 Shots Fired 68 | . 64 4 Gun 68 | . 64 4 Cannon . | . . . Launcher . | . . . Special . | . . . Kinetic 22 | . 22 . Thermal 43 | . 39 4 Explosive . | . . . Electromagnetic 3 | . 3 . Robot Hit Streak 9 | . 9 1 Robot Miss Streak 3 | . 3 1 Penetration Max . | . . . Secondary Targets 1 | . 1 . Max Gunslinging Chain 1 | . 1 . Shots Hit Robots 55 | . 53 2 Core Hits 24 | . 24 . Critical Kills . | . . . Critical Parts Destroyed 2 | . 2 . Critical Strikes 2 | . 2 . Smash 2 | . 2 . Melee Attacks 20 | . 17 3 Impact 20 | . 17 3 Slashing . | . . . Piercing . | . . . Sneak Attacks 1 | . 1 . Combat Hostiles . | . . . Follow-up Attacks . | . . . Damage Inflicted 904 | . 869 35 Guns 479 | . 444 35 Cannons . | . . . Explosions . | . . . Melee 425 | . 425 . Ramming . | . . . Kinetic 124 | . 124 . Thermal 344 | . 309 35 Explosive . | . . . Electromagnetic 11 | . 11 . Impact 425 | . 425 . Slashing . | . . . Piercing . | . . . Highest Corruption . | . . . Average Corruption . | . . . Corruption Purged . | . . . Corruption Blocked . | . . . Overload Shots . | . . . Overflow Damage 172 | . 172 . Projectiles . | . . . Explosions . | . . . Melee 172 | . 172 . Knockbacks 2 | . 2 . Impact 2 | . 2 . Kinetic . | . . . Secondary . | . . . Self-Inflicted Damage . | . . . Shots . | . . . Rammed . | . . . Targets Rammed . | . . . Kicked . | . . . Crushed . | . . . Highest Temperature 50 | . 50 . Average Temperature 15 | . 15 . Received Heat Transfer 333 | . 333 . Siege Activations . | . . . Martial Activations . | . . . Shielding Activations . | . . . Robots Disrupted . | . . . Combat Hostiles . | . . . Robots Corrupted 1 | . 1 . Combat Hostiles 1 | . 1 . Parts Fried 2 | . 2 . Impact Corruptions 6 | . 6 . Robots Melted . | . . . Combat Hostiles . | . . . Parts Melted . | . . . Heat Transferred 775 | . 700 75 Parts Sabotaged . | . . . Parts Stolen . | . . . Parts Stripped . | . . . Power Chain Reactions . | . . . Alert | -11 -10 -10 ------- Run | Yrd Mat Min Maximum Alert Level . | . . . Low Security (%) 100 | 100 100 100 Level 1 . | . . . Level 2 . | . . . Level 3 . | . . . Level 4 . | . . . Level 5 . | . . . High Security . | . . . Max Security . | . . . Peak Influence 130 | . 130 33 Initial 33 | . . 33 Average 56 | . 74 9 Influence Increases 367 | . 367 . Destroy 0b10 Robot/C 300 | . 300 . Destroy 0b10 Robot/NC 5 | . 5 . Destroy Leader 62 | . 62 . Influence Decreases 367 | . 280 87 Entered New Map 54 | . . 54 Time Decay 263 | . 230 33 Lost Part 50 | . 50 . Squads Dispatched 3 | . 3 . Investigation 1 | . 1 . Extermination . | . . . Reinforcement 2 | . 2 . Assault . | . . . Garrison . | . . . Intercept . | . . . Searches Triggered . | . . . Construction Impeded . | . . . Haulers Reinforced . | . . . Active Scanning Responses . | . . . Cargo Convoy Interrupts . | . . . Stealth | -11 -10 -10 --------- Run | Yrd Mat Min Distress Signals 2 | . 2 . Communications Jammed . | . . . Distress Signals . | . . . Times Spotted 26 | . 23 3 Peak Tracking Total 6 | . 6 3 Tactical Retreats . | . . . Traps | -11 -10 -10 ------- Run | Yrd Mat Min Traps Triggered 1 | . 1 . Indirectly . | . . . Trap Hack Attempts . | . . . Triggered . | . . . Disarmed . | . . . Reprogrammed . | . . . Reused . | . . . Traps Extracted . | . . . Installed . | . . . Triggered . | . . . Machines | -11 -10 -10 ---------- Run | Yrd Mat Min Machines Disabled . | . . . Max in Single Turn . | . . . Machines Repaired . | . . . Machines Dismantled . | . . . Machines Sabotaged . | . . . Overloaded Fab Kills . | . . . Hacking | -11 -10 -10 --------- Run | Yrd Mat Min Machines Accessed 1 | . 1 . Terminals 1 | . 1 . Fabricators . | . . . Repair Stations . | . . . Recycling Units . | . . . Scanalyzers . | . . . Garrison Access . | . . . Total Hacks 2 | . 2 . Successful 1 | . 1 . Failed 1 | . 1 . Catastrophic 1 | . 1 . Database Lockouts . | . . . Manual . | . . . Terminals 2 | . 2 . Fabricators . | . . . Repair Stations . | . . . Recycling Units . | . . . Scanalyzers . | . . . Garrison Access . | . . . Terminal Hacks 1 | . 1 . Record 1 | . 1 . Fabricator Hacks . | . . . Repair Station Hacks . | . . . Recycling Unit Hacks . | . . . Scanalyzer . | . . . Garrison Access Hacks . | . . . Unauthorized Hacks . | . . . Terminals . | . . . Fabricators . | . . . Repair Stations . | . . . Recycling Units . | . . . Scanalyzers . | . . . Garrison Access . | . . . Data Cores Recovered . | . . . Used . | . . . Hacking Detections 1 | . 1 . Full Trace Events 1 | . 1 . Feedback Events . | . . . Feedback Blocked . | . . . Robot Schematics Acquired . | . . . Robots Built . | . . . Authchips . | . . . Time . | . . . Total Robot Build Rating . | . . . Part Schematics Acquired . | . . . Parts Built . | . . . Authchips . | . . . Time . | . . . Total Part Build Rating . | . . . Part Studies Acquired . | . . . Parts Repaired . | . . . Time . | . . . Parts Recycled . | . . . Recycled Matter . | . . . Retrieved Matter . | . . . Retrieved Components . | . . . Parts Scanalyzed . | . . . Part Schematics Acquired . | . . . Parts Damaged . | . . . Bothacking | -11 -10 -10 ------------ Run | Yrd Mat Min Used RIF Installer . | . . . Robots Hacked . | . . . Non-combat . | . . . Combat . | . . . Robot Hacks Applied . | . . . Relay Couplers Released . | . . . Fabnet Peak Effective % . | . . . Robots Rewired . | . . . Allies Hacked . | . . . Hacks Repelled . | . . . Allies | -11 -10 -10 -------- Run | Yrd Mat Min Total Allies . | . . . Largest Group . | . . . Highest-Rated Group . | . . . Highest-Rated Ally . | . . . Total Orders . | . . . Ally Attacks . | . . . Total Damage . | . . . Kills . | . . . Allies Corrupted . | . . . Allies Melted . | . . . Intel | -11 -10 -10 ------- Run | Yrd Mat Min Active Infowar (turns) . | . . . Robot Analysis Total . | . . . Derelict Logs Recovered 1 | . . 1 Drone Launches . | . . . Drone Recoveries . | . . . Exploration | -11 -10 -10 ------------- Run | Yrd Mat Min Turns Passed 802 | 51 596 155 Spaces Moved 371 | 41 257 73 Core 7 | 6 1 . Treads . | . . . Legs 364 | 35 256 73 Wheels . | . . . Hover . | . . . Flight . | . . . Fastest Speed 50 | 50 120 190 Average Speed 156 | 109 154 190 Slowest Speed 250 | 120 250 190 Overloaded Moves . | . . . Propulsion Burnouts . | . . . Robots Hopped . | . . . Potential Cave-ins . | . . . Cave-ins Triggered . | . . . Exploration Rate (%) 26 | 4 50 25 Regions Visited 2 Branch Regions 1 Pre-discovered Areas . | . . . Known Exits Taken . | . . . Unknown Exits Taken 2 | 1 1 . Scrap Searched . | . . . Spaces Dug . | . . . Terrain Destroyed . | . . . Melee . | . . . Projectile . | . . . AOE . | . . . Terrain Rammed . | . . . Walls Destroyed . | . . . Machines Disabled . | . . . Actions | -11 -10 -10 --------- Run | Yrd Mat Min Total 499 | 45 372 82 Wait 22 | . 21 1 Move 369 | 40 256 73 Hop . | . . . Pick Up 16 | 1 15 . Fast Attach 10 | 4 6 . Attach 7 | . 6 1 Detach 2 | . 2 . Swap 4 | . 4 . Drop 6 | . 6 . Fire 43 | . 39 4 Melee 20 | . 17 3 Ram . | . . . Kick . | . . . Crush . | . . . Escape Stasis . | . . . Rewire . | . . . Trap . | . . . Miscellaneous . | . . . Route ------- -11/Scrapyard -10/Materials (discovered 3 exits: [*Mat] / [*Min x2]) -10/Mines History --------- Turn | Location | Event 5 | -11/Scrapyard | Discovered new exit (range 16) 52 | -11/Scrapyard | Entered Materials 79 | -10/Materials | Discovered new exit (range 9) 228 | -10/Materials | Core integrity fell below 50% 284 | -10/Materials | Discovered new exit (range 13) 531 | -10/Materials | Core integrity fell below 20% 559 | -10/Materials | Build established: Scavenger-Mutant 614 | -10/Materials | Discovered new exit (range 10) 648 | -10/Materials | Entered Mines 803 | -10/Mines | Destroyed by S-10 Pest with Light Assault Rifle Last Messages --------------- [Achievement: Organ Harvest] Sneak attack on A-02 Transporter. Destroyed Ion Engine. A-02 Transporter system corrupted by crushing effect. A-02 Transporter destroyed. K-01 Serf collects debris. Triggered Blade Trap. Massive razor-sharp blades shoot up from within the floor. Aluminum Leg severed. T-07 Excavator is excavating. K-01 Serf cleans the Terminal. LOCATION=UNKNOWN GOAL=ESCAPE T-07 Excavator is excavating. Acquired derelict log, extracted data. Data stored: Storage entrances (x1). Sml. Laser destroyed. K-01 Serf collects debris. Map ----- +----------------------------------------------------+ | ?????????????????????????????????????????????????? | | ?????????????????????????????????????????????????? | | ?????????????????????????????????????????????????? | | ????????????????????????????????????????????????? | | ??????????????????????????????????????????????? | | ???????????????????????????????????????????????? | | #???????????????????????????????????????????????? | | #???????????????????????????????????????????????? | | ##??????????????????????????????????????????????? | | #??????????????????????????????????????????????? | | ##?????????????????????????????????????????????? | | #?????????????????????????????????????????????? | | #???????????????????????????? ????????????????? | | #??????????????# ?????????? #????????????????? | | #??????????????# ?????????? #????????????????? | | #???????????????# ????????? ##???????????????? | | #??????????? ?????# ???????## ##??????????????? | | #????????? ????# ??????# ##?????????????? | | ?????????? ???# ##???# k ##????????????? | | ##????????? #?## #### ##???????????? | | #?????????? ## ## #???????????? | | #???????????# ??????????? | | #????????????# ???????????? | | #?????????????# s s ???????????????? | | #??????????????# s ???????????????????? | | #??#####????????# @#??????????????????????? | | #### ##???????## ##??????????????????????? | | #??#####?## ##???????????????????????? | | #### #### #????????????????????????? | | ## ## ## ##????????????????????????? | | ###### ###?????????????????????????? | | ?????## ##???????????????????????????? | | ??????########## ##????????????????????????????? | | ???????????????#####?????????????????????????????? | | ?????????????????????????????????????????????????? | | ?????????????????????????????????????????????????? | | ?????????????????????????????????????????????????? | | ?????????????????????????????????????????????????? | | | | | | | | | | | | | | | | | | | | | | | | | +----------------------------------------------------+ Best States ------------- Heat Dissipation 35 Energy Generation 10 Energy Capacity 250 Matter Stores 300 Matter Capacity 300 Sight Range 16 Terrain Scan Density 10 Additional Mass Support 6 Armor Coverage 150 Evasion (%) 55 Item Schematics ----------------- None Robot Schematics ------------------ None Fabricated ------------ Nothing Repaired ---------- Nothing Studied --------- None Alien Tech Used ----------------- None Achievements -------------- DATA ERROR: Steam Global Achievement% Organ Harvest Overwhelming There's More Where That Came From Challenges ------------ None Game ------ Seed DisruptionScrapRedistributor Manual? 0 Play Time 00:15:30 Cumulative 129.9 hours Start 2025.10.22 @ 11:31:41 End 2025.10.22 @ 12:04:43 Sessions 1 Manual Loads 0 Difficulty Rogue Special Mode None Game No. 69 Rogue 69 Adventurer 0 Explorer 0 Win Type - Total 0 Types 0/0/0/0/0/0/0/0/0/0 Lore% 17 Gallery% 31 Achievement% 15 Wizard Run 0 Options --------- Layout 1 ASCII 0 Keyboard 0 Movement Numpad Keybinds 0 Fullscreen 1 Font 16/SmallcapsGlow Map View 50x40 Zoom Use 0% Tactical HUD 0 Map Filters NONE Filters NONE Steam SD RUN: 7f6cdf95-eaf5-4368-a75e-0ffc421503a4